Cogmind - Beta 16 *** ADVENTURER MODE // 2025.11.21 @ 23:55:26 Player: BD Result: Destroyed by XY-EU6(R) with Subdweller Laser Performance ------------- Evolutions (0) 0 Regions Visited (3) 600 Robots Destroyed (20) 100 Value Destroyed (756) 756 Prototype IDs (2) 40 Alien Tech Used (0) 0 Bonus (0) 0 TOTAL SCORE: 1496 Bonus ------- None Cogmind --------- Core Integrity 0/250 Matter 363/400 Energy 125/125 System Corruption 2% Temperature Cool (6) Movement Rolling (95) Location -10/Subcaves Parts ------- > --- POWER (1) -------- Light Ion Engine > --- PROPULSION (2) --- Wheel Subdweller Monowheel > --- UTILITY (2) ------ Small Storage Unit Medium Matter Pod > --- WEAPON (2) ------- Assault Rifle > --- INVENTORY (8) ---- Large Matter Pod (24) Subdweller Optics Shield Generator Makeshift System Shield Assault Rifle Subdweller Machine Gun Peak State ------------ > --- POWER ------------ Light Ion Engine > --- PROPULSION ------- Light Treads Light Treads > --- UTILITY ---------- Small Storage Unit Shield Generator > --- WEAPON ----------- Assault Rifle Subdweller Machine Gun > --- INVENTORY -------- Spiked Treads Medium Matter Pod Shield Generator Assault Rifle Assault Rifle Assault Rifle Subdweller Machine Gun [Rating: 10] Favorites ----------- Power Light Ion Engine Engine Light Ion Engine Propulsion Light Treads Treads Light Treads Wheel Wheel Utility Small Storage Unit Device Shield Generator Storage Small Storage Unit Weapon Assault Rifle Ballistic Gun Assault Rifle Build | -11 -10 -10 -10 ------- Run | Yrd Mat Min Sub Slots Evolved . | . . . . Power . | . . . . Propulsion . | . . . . Utility . | . . . . Weapon . | . . . . Parts Attached 19 | 6 2 2 9 Power 3 | 1 . 1 1 Engine 3 | 1 . 1 1 Core . | . . . . Reactor . | . . . . Propulsion 5 | 2 . . 3 Treads 3 | 2 . . 1 Leg . | . . . . Wheel 2 | . . . 2 Hover . | . . . . Flight . | . . . . Utility 5 | 1 1 1 2 Device 3 | . 1 1 1 Storage 2 | 1 . . 1 Processor . | . . . . Hackware . | . . . . Protection . | . . . . Artifact . | . . . . Weapon 6 | 2 1 . 3 Energy Gun . | . . . . Energy Cannon . | . . . . Ballistic Gun 6 | 2 1 . 3 Ballistic Cannon . | . . . . Launcher . | . . . . Special Weapon . | . . . . Impact Weapon . | . . . . Slashing Weapon . | . . . . Piercing Weapon . | . . . . Special Melee Weapon . | . . . . Unidentified Prototypes . | . . . . Parts Lost 10 | . . . 10 Power 1 | . . . 1 Propulsion 3 | . . . 3 Utility 2 | . . . 2 Weapon 4 | . . . 4 Highest Loss Streak 3 | . . . 3 To Critical Strikes 1 | . . . 1 Average Backups 5 | . 5 7 5 Power . | . 1 . . Propulsion . | . . . . Utility 2 | . 2 3 2 Weapon 2 | . 1 3 2 Tool/Special . | . . . . Unused Backups 7 | . . . 7 Power . | . . . . Propulsion . | . . . . Utility 4 | . . . 4 Weapon 2 | . . . 2 Tool/Special 1 | . . . 1 Average Slot Usage (%) 75 | . 99 98 67 Engine 8 | . 14 13 7 Treads 11 | . 28 28 6 Wheel 4 | . . . 5 Device 5 | . 13 13 3 Storage 17 | . 14 14 18 Ballistic Gun 27 | . 28 28 26 Peak Build Rating 10 | 6 9 9 10 Average Rating 6 | 4 8 8 5 On Entrance 5 | . 6 9 8 Avg Prop Armor Cover (%) . | . . . . Naked Turns . | . . . . Heaviest Build 16 | 12 14 14 16 Greatest Support 40 | 40 40 40 40 Greatest Overweight (x) 2 | . . . 2 Average Overweight (x) . | . . . 1 Largest Inventory Capacity 8 | 8 8 8 8 Average Capacity 7 | 7 8 8 8 Most Carried 8 | 1 8 8 8 Average Carried 5 | . 5 7 5 Final Capacity 8 | 8 8 8 8 Final Carried 8 | 1 8 6 6 Class Distribution -------------------- 100% | Mutant Dominant Class ---------------- Mutant | -10/Materials Mutant | -10/Mines Mutant | -10/Subcaves Resources | -11 -10 -10 -10 ----------- Run | Yrd Mat Min Sub Matter Collected 982 | 232 104 230 416 Remotely . | . . . . Salvage Created 808 | . 153 260 395 Parts 50 | . 9 10 31 Haulers Intercepted . | . . . . Recyclers Shooed . | . . . . Parts Field Recycled . | . . . . Retrieved Matter . | . . . . Parts Self-Destructed 11 | . . . 11 Prevented . | . . . . Parts Restored . | . . . . Kills | -11 -10 -10 -10 ------- Run | Yrd Mat Min Sub Combat Hostiles Destroyed 20 | . 3 6 11 Guns 20 | . 3 6 11 Classes Destroyed 5 | . 1 . 4 Swarmer 2 | . . . 2 Grunt 9 | . 3 6 . Sentry 1 | . . . 1 Artisan 1 | . . . 1 Subdweller 8 | . . . 8 Best Kill Streak 3 | . 3 2 2 Combat Bots Only 3 | . 3 2 2 Max Kills in Single Turn 2 | . 1 1 2 Gunslinging 1 | . . . 1 Exploded . | . . . . Melee . | . . . . Uniques/NPCs Destroyed . | . . . . Combat | -11 -10 -10 -10 -------- Run | Yrd Mat Min Sub Hostile Shots Fired 181 | . 31 39 111 Missed 51 | . 12 9 30 Hits 130 | . 19 30 81 Projectile 130 | . 19 30 81 Critical Strikes 3 | . . 1 2 Damage Taken 1497 | . 157 222 1118 Core 263 | . 16 42 205 Absorbed by Shields 358 | . 58 83 217 Ignored by Resistances 529 | . 66 90 373 Core Remaining (%) 100 | 100 . . . Volleys Fired 108 | . 11 20 77 Largest 2 | . 2 2 2 Hottest 50 | . 40 40 50 Shots Fired 179 | . 22 40 117 Gun 179 | . 22 40 117 Cannon . | . . . . Launcher . | . . . . Special . | . . . . Kinetic 179 | . 22 40 117 Thermal . | . . . . Explosive . | . . . . Electromagnetic . | . . . . Robot Hit Streak 23 | . 13 23 23 Robot Miss Streak 2 | . 1 2 1 Penetration Max . | . . . . Secondary Targets 1 | . . . 1 Max Gunslinging Chain 1 | . . . 1 Shots Hit Robots 160 | . 18 35 107 Core Hits 45 | . 8 14 23 Critical Kills . | . . . . Critical Parts Destroyed . | . . . . Critical Strikes . | . . . . Melee Attacks . | . . . . Impact . | . . . . Slashing . | . . . . Piercing . | . . . . Sneak Attacks . | . . . . Combat Hostiles . | . . . . Follow-up Attacks . | . . . . Damage Inflicted 2103 | . 234 480 1389 Guns 2103 | . 234 480 1389 Cannons . | . . . . Explosions . | . . . . Melee . | . . . . Ramming . | . . . . Kinetic 2103 | . 234 480 1389 Thermal . | . . . . Explosive . | . . . . Electromagnetic . | . . . . Impact . | . . . . Slashing . | . . . . Piercing . | . . . . Highest Corruption 2 | . 2 2 2 Average Corruption 1 | . 1 2 2 Corruption Purged . | . . . . Corruption Blocked . | . . . . Effects 28 | . 1 2 25 Message Errors 7 | . . 1 6 Matter Fused 5 | . . . 5 Heat Flow Errors 2 | . . . 2 Energy Discharges 6 | . . 1 5 Data Loss (minor) 2 | . . . 2 Data Loss (major) 3 | . 1 . 2 Misfires 1 | . . . 1 Weapon Failures 2 | . . . 2 Overload Shots . | . . . . Overflow Damage . | . . . . Projectiles . | . . . . Explosions . | . . . . Melee . | . . . . Knockbacks . | . . . . Impact . | . . . . Kinetic . | . . . . Secondary . | . . . . Self-Inflicted Damage . | . . . . Shots . | . . . . Rammed . | . . . . Targets Rammed . | . . . . Kicked . | . . . . Crushed . | . . . . Highest Temperature 120 | . . 15 120 Average Temperature 35 | . . 7 63 Received Heat Transfer 536 | . 106 164 266 Siege Activations . | . . . . Martial Activations . | . . . . Shielding Activations . | . . . . Robots Disrupted . | . . . . Combat Hostiles . | . . . . Robots Corrupted . | . . . . Combat Hostiles . | . . . . Parts Fried . | . . . . Impact Corruptions . | . . . . Robots Melted . | . . . . Combat Hostiles . | . . . . Parts Melted . | . . . . Heat Transferred . | . . . . Parts Sabotaged . | . . . . Parts Stolen . | . . . . Parts Stripped . | . . . . Power Chain Reactions . | . . . . Alert | -11 -10 -10 -10 ------- Run | Yrd Mat Min Sub Maximum Alert Level . | . . . . Low Security (%) 100 | 100 100 100 . Level 1 . | . . . . Level 2 . | . . . . Level 3 . | . . . . Level 4 . | . . . . Level 5 . | . . . . High Security . | . . . . Max Security . | . . . . Peak Influence 70 | . 70 60 . Initial . | . . . . Average 15 | . 12 29 . Influence Increases 330 | . 80 150 100 Destroy 0b10 Robot/C 240 | . 60 120 60 Destroy Leader 60 | . 20 30 10 Lose Combat Pursuer 30 | . . . 30 Influence Decreases 330 | . 80 110 140 Entered New Map 24 | . . . 24 Time Decay 286 | . 80 110 96 Lost Part 20 | . . . 20 Squads Dispatched . | . . . . Investigation . | . . . . Extermination . | . . . . Reinforcement . | . . . . Assault . | . . . . Garrison . | . . . . Intercept . | . . . . Searches Triggered . | . . . . Construction Impeded . | . . . . Haulers Reinforced . | . . . . Active Scanning Responses . | . . . . Cargo Convoy Interrupts . | . . . . Stealth | -11 -10 -10 -10 --------- Run | Yrd Mat Min Sub Distress Signals . | . . . . Communications Jammed . | . . . . Distress Signals . | . . . . Times Spotted 27 | . 8 6 13 Peak Tracking Total 6 | . 6 2 2 Tactical Retreats 1 | . . . 1 Traps | -11 -10 -10 -10 ------- Run | Yrd Mat Min Sub Traps Triggered 2 | . 2 . . Indirectly . | . . . . Trap Hack Attempts . | . . . . Triggered . | . . . . Disarmed . | . . . . Reprogrammed . | . . . . Reused . | . . . . Traps Extracted . | . . . . Installed . | . . . . Triggered . | . . . . Machines | -11 -10 -10 -10 ---------- Run | Yrd Mat Min Sub Machines Disabled . | . . . . Max in Single Turn . | . . . . Machines Repaired . | . . . . Machines Dismantled . | . . . . Machines Sabotaged . | . . . . Overloaded Fab Kills . | . . . . Hacking | -11 -10 -10 -10 --------- Run | Yrd Mat Min Sub Machines Accessed 2 | . 2 . . Terminals 2 | . 2 . . Fabricators . | . . . . Repair Stations . | . . . . Recycling Units . | . . . . Scanalyzers . | . . . . Garrison Access . | . . . . Total Hacks 6 | . 6 . . Successful 4 | . 4 . . Failed 2 | . 2 . . Catastrophic . | . . . . Database Lockouts . | . . . . Manual . | . . . . Terminals 6 | . 6 . . Fabricators . | . . . . Repair Stations . | . . . . Recycling Units . | . . . . Scanalyzers . | . . . . Garrison Access . | . . . . Terminal Hacks 4 | . 4 . . Record 3 | . 3 . . Prototype ID Bank 1 | . 1 . . Fabricator Hacks . | . . . . Repair Station Hacks . | . . . . Recycling Unit Hacks . | . . . . Scanalyzer . | . . . . Garrison Access Hacks . | . . . . Unauthorized Hacks . | . . . . Terminals . | . . . . Fabricators . | . . . . Repair Stations . | . . . . Recycling Units . | . . . . Scanalyzers . | . . . . Garrison Access . | . . . . Data Cores Recovered . | . . . . Used . | . . . . Hacking Detections 1 | . 1 . . Full Trace Events . | . . . . Feedback Events . | . . . . Feedback Blocked . | . . . . Robot Schematics Acquired . | . . . . Robots Built . | . . . . Authchips . | . . . . Time . | . . . . Total Robot Build Rating . | . . . . Part Schematics Acquired . | . . . . Parts Built . | . . . . Authchips . | . . . . Time . | . . . . Total Part Build Rating . | . . . . Part Studies Acquired . | . . . . Parts Repaired . | . . . . Time . | . . . . Parts Recycled . | . . . . Recycled Matter . | . . . . Retrieved Matter . | . . . . Retrieved Components . | . . . . Parts Scanalyzed . | . . . . Part Schematics Acquired . | . . . . Parts Damaged . | . . . . Bothacking | -11 -10 -10 -10 ------------ Run | Yrd Mat Min Sub Used RIF Installer . | . . . . Robots Hacked . | . . . . Non-combat . | . . . . Combat . | . . . . Robot Hacks Applied . | . . . . Relay Couplers Released . | . . . . Fabnet Peak Effective % . | . . . . Robots Rewired . | . . . . Allies Hacked . | . . . . Hacks Repelled . | . . . . Allies | -11 -10 -10 -10 -------- Run | Yrd Mat Min Sub Total Allies . | . . . . Largest Group . | . . . . Highest-Rated Group . | . . . . Highest-Rated Ally . | . . . . Total Orders . | . . . . Ally Attacks . | . . . . Total Damage . | . . . . Kills . | . . . . Allies Corrupted . | . . . . Allies Melted . | . . . . Intel | -11 -10 -10 -10 ------- Run | Yrd Mat Min Sub Active Infowar (turns) . | . . . . Robot Analysis Total . | . . . . Derelict Logs Recovered 2 | . . 1 1 Drone Launches . | . . . . Drone Recoveries . | . . . . Exploration | -11 -10 -10 -10 ------------- Run | Yrd Mat Min Sub Turns Passed 2872 | 136 452 251 2033 Spaces Moved 1861 | 85 252 118 1406 Core 622 | 8 . . 614 Treads 665 | 77 252 118 218 Legs . | . . . . Wheels 574 | . . . 574 Hover . | . . . . Flight . | . . . . Fastest Speed 50 | 50 160 160 95 Average Speed 136 | 149 160 160 129 Slowest Speed 160 | 160 160 160 160 Overloaded Moves . | . . . . Propulsion Burnouts . | . . . . Robots Hopped . | . . . . Potential Cave-ins . | . . . . Cave-ins Triggered . | . . . . Exploration Rate (%) 24 | 4 21 22 52 Regions Visited 3 Branch Regions 2 Pre-discovered Areas 1 | . . . 1 Known Exits Taken 1 | . . 1 . Unknown Exits Taken 2 | 1 1 . . Scrap Searched . | . . . . Spaces Dug . | . . . . Terrain Destroyed . | . . . . Melee . | . . . . Projectile . | . . . . AOE . | . . . . Terrain Rammed . | . . . . Walls Destroyed . | . . . . Machines Disabled . | . . . . Actions | -11 -10 -10 -10 --------- Run | Yrd Mat Min Sub Total 2020 | 91 281 142 1506 Wait 7 | . 2 . 5 Move 1858 | 84 251 117 1406 Hop . | . . . . Pick Up 20 | 1 11 . 8 Fast Attach 8 | 6 . . 2 Attach 11 | . 2 2 7 Detach 2 | . 1 1 . Swap . | . . . . Drop 6 | . 3 2 1 Fire 108 | . 11 20 77 Melee . | . . . . Ram . | . . . . Kick . | . . . . Crush . | . . . . Escape Stasis . | . . . . Rewire . | . . . . Trap . | . . . . Miscellaneous . | . . . . Route ------- -11/Scrapyard -10/Materials (discovered 2 exits: [*Min x2]) -10/Mines -10/Subcaves History --------- Turn | Location | Event 9 | -11/Scrapyard | Discovered new exit (range 13) 137 | -11/Scrapyard | Entered Materials 176 | -10/Materials | Discovered new exit (range 13) 313 | -10/Materials | Build established: Mutant 374 | -10/Materials | Discovered new exit (range 13) 589 | -10/Materials | Entered Mines 644 | -10/Mines | Identified exit to Subcaves 840 | -10/Mines | Entered Subcaves 1113 | -10/Subcaves | Learned Materials emergency access door positions 1203 | -10/Subcaves | Core integrity fell below 50% 1297 | -10/Subcaves | Core integrity fell below 20% 1316 | -10/Subcaves | Lost 3 parts (1p1n1w) 1399 | -10/Subcaves | Shifting Twisted Machinery released Sub. Power Source 2389 | -10/Subcaves | Shifting Twisted Machinery released Sub. Laser 2397 | -10/Subcaves | Shifting Twisted Machinery released Humpback 2562 | -10/Subcaves | Learned location of Zion (-7) 2562 | -10/Subcaves | Met a Zionite searching for "candidates" 2573 | -10/Subcaves | A swath of the cavern ceiling suddenly collapsed 2873 | -10/Subcaves | Destroyed by XY-EU6(R) with Subdweller Laser Last Messages --------------- 02599_ Acquired 58 matter. 02600_ System corrupted: Matter fused (-9). 02627_ System corrupted: Energy discharge (-35). 02656_ 6I-49O(R): "OHNO!" 02668_ 6I-49O(R) destroyed. 02671_ Subatomizers dissect the Disposable Heat Sink. 02684_ Acquired Sub. Monowheel. 02685_ Subatomizers dissect the Disposable Heat Sink. 02688_ Acquired 59 matter. 02693_ Acquired Lrg. Matter Pod. 02697_ Subatomizers dissect the Disposable Heat Sink. 02763_ Acquired 16 matter. 02767_ Subatomizers dissect the Mak. System Shield. 02771_ Acquired 14 matter. 02775_ Acquired Mak. System Shield. 02869_ Assault Rifle destroyed. Map ----- +----------------------------------------------------+ | ??????????????????????## ######## ##????? | | ???????????????????????## ### ##???? | | ????????????????????????# ## #???? | | ????????????????????????## ### #???? | | ?????????????????????????# # # ### ##???? | | ###??????????????????????## #?######????? | | #??????????????????????# = #???????????? | | # #??????????????????????### ## ##???????????? | | ? #????????????????????????# #######????????????? | | ? #????????????????????????## #?????????????????? | | # #?????????????????????????# #?????????????????? | | #????????????????????????## ##?????????????????? | | #?????????????????????????# ##?????????????????? | | #?????????????????????##??## #?????????????????? | | ##?????????????????????# ##?# #?????????????????? | | ???????????????????????# ### ##?????????????????? | | ??????????????????????## ## #?????????????????? | | ??#######?????????????# #?????????????????? | | ??# ??????????????# ## ###?????????????????? | | ??# #??????????????# ####???????????????????? | | ?## #??????????????## #??????????????????????? | | ## #???????????????# #??????????????????????? | | # ##??????????????# #???##?????????????????? | | # #??????????????## ##? "#?#???????????????? | | # #???????????????# ## ## ##??????????????? | | #???????????????#@ R < ## #???????????? | | #??????????????## #???????????? | | ### ##?####?######## #???????????? | | ### ### ### # #???????????? | | ### #???????????? | | # #### ## ##???????????? | | # #?## ######## #??#????????????? | | ###??#######??????## #???????????????? | | ###??????????????????###########???????????????? | | #??????????????????????????????????????????????? | | #??????????????????????????????????????????????? | | ###??????????????????????????????????????????????? | | ?????????????????????????????????????????????????? | | ####?????????????????????????????????????????????? | | # #?????????????????????????????????????????????? | | #?????????????????????????????????????????????? | | ##?????????????????????????????????????????????? | | #??????????????????????????????????????????????? | | #??????????????????????????????????????????????? | | ###??????????????????????????????????????????????? | | ?????????????????????????????????????????????????? | | ###??????????????????????????????????????????????? | | ##?????????????????????????????????????????????? | | #?????????????????????????????????????????????? | | #?????????????????????????????????????????????? | +----------------------------------------------------+ Best States ------------- Heat Dissipation 25 Energy Generation 10 Energy Capacity 125 Matter Stores 400 Matter Capacity 400 Sight Range 16 Terrain Scan Density 10 Resistance: KI 20 Resistance: TH 20 Resistance: EX 20 Resistance: EM 20 Resistance: I 20 Resistance: S 20 Resistance: P 20 Evasion (%) 41 Recoil Reduction 2 Offensive Hacking 10 Item Schematics ----------------- None Robot Schematics ------------------ None Fabricated ------------ Nothing Repaired ---------- Nothing Studied --------- None Alien Tech Used ----------------- None Achievements -------------- Art Critic Challenges ------------ None Game ------ Seed GravjetBraceChronowheel Manual? 0 Play Time 00:30:01 Cumulative 2.7 hours Start 2025.11.21 @ 23:29:06 End 2025.11.21 @ 23:55:26 Sessions 1 Manual Loads 0 Difficulty Adventurer Special Mode None Game No. 4 Rogue 0 Adventurer 4 Explorer 0 Win Type - Total 0 Types 0/0/0/0/0/0/0/0/0/0 Lore% 0 Gallery% 4 Achievement% 5 Wizard Run 0 Options --------- Layout 2 ASCII 0 Keyboard 1 Movement Arrows Keybinds 0 Fullscreen 1 Font 24/Swanston Map View 50x44 Zoom Use 68% Tactical HUD 1 Map Filters NONE Filters NONE Steam 1 RUN: d5ba653b-cc13-4fc6-b6b3-c801c4c6b6e7